bitfinex/quotes_SOLUSD_20241117
["timestamp","ask_amount","ask_price","bid_price","bid_amount"]
[1731802272792,13.98801336,216.36,216.3,20.0]
[1731802273109,0.532909,216.43,216.3,20.0]
[1731802273110,13.98801336,216.34,216.3,20.0]
[1731802273490,13.98801336,216.37,216.3,0.09367462]
[1731802273687,13.98801336,216.38,216.31,13.98801336]
[1731802274011,13.98801336,216.35,216.29,20.0]
[1731802274909,22.37157381,216.35,216.29,20.0]
[1731802275096,22.37157381,216.34,216.26,22.37157381]
[1731802275290,4.6219,216.36,216.27,0.25098]
[1731802275291,22.37157381,216.33,216.27,0.25098]
[1731802276007,22.37157381,216.35,216.28,0.09367462]
[1731802276188,22.37157381,216.37,216.29,22.37157381]
[1731802276509,26.99387381,216.35,216.28,22.49706381]
[1731802276810,22.37157381,216.34,216.26,22.37157381]
[1731802276986,22.37157381,216.34,216.27,22.37157381]
[1731802277185,22.37157381,216.32,216.25,22.37157381]
[1731802277403,22.37157381,216.33,216.26,0.09367462]
[1731802277613,22.37157381,216.33,216.27,22.37157381]
[1731802278311,22.37157381,216.34,216.27,0.09367462]
[1731802278492,27.8451,216.4,216.27,0.09367462]
[1731802278493,22.37157381,216.32,216.27,0.12549]
[1731802279504,22.37157381,216.34,216.27,0.12549]
[1731802279900,22.37157381,216.34,216.26,0.12549]
[1731802280793,26.99407381,216.34,216.27,4.6237]
[1731802282215,26.99407381,216.34,216.21,26.99657381]
[1731802282216,22.37157381,216.28,216.21,26.99657381]
[1731802282510,22.37157381,216.3,216.23,22.37157381]
[1731802282712,4.6225,216.34,216.22,0.09367462]
[1731802282713,4.6225,216.34,216.24,0.09367462]
[1731802282915,22.37157381,216.36,216.27,22.37157381]
[1731802283125,22.37157381,216.36,216.29,22.37157381]
[1731802283500,22.37157381,216.38,216.3,23.902374]
[1731802283713,4.6212,216.39,216.33,0.12549]
[1731802285000,26.99247381,216.41,216.33,22.37157381]
[1731802285213,4.6209,216.41,216.35,22.37157381]
[1731802286793,27.52508281,216.43,216.36,0.12549]
[1731802287116,27.52508281,216.43,216.38,23.902374]
[1731802287117,0.532909,216.43,216.38,23.902374]
[1731802287720,0.032909,216.43,216.4,0.12549]
[1731802290100,0.032909,216.43,216.4,23.902374]
[1731802290304,0.032909,216.43,216.42,23.902374]
[1731802290498,0.032909,216.43,216.42,24.12153862]
[1731802292317,0.032909,216.43,216.42,46.49311243]
[1731802292631,0.032909,216.43,216.4,23.902374]
[1731802293296,0.032909,216.43,216.42,24.12153862]
[1731802294116,0.032909,216.43,216.42,23.902374]
[1731802294309,0.032909,216.43,216.4,22.37157381]
[1731802294622,0.032909,216.43,216.42,0.34465462]
[1731802294821,0.032909,216.43,216.42,24.12153862]
[1731802295217,0.032909,216.43,216.42,0.34465462]
[1731802295427,0.032909,216.43,216.41,0.12549]
[1731802295607,0.032909,216.43,216.42,1.8]
[1731802296320,4.653309,216.43,216.42,1.8]
[1731802296901,18.62811391,216.43,216.42,1.8]
[1731802300310,14.00771391,216.43,216.42,1.8]
[1731802301030,0.032909,216.43,216.42,1.8]
[1731802301725,0.032909,216.43,216.42,3.6]
[1731802302102,0.032909,216.43,216.42,3.72549]
[1731802302306,0.032909,216.43,216.42,41.47717891]
[1731802302529,0.032909,216.43,216.42,27.502374]
[1731802303226,0.032909,216.43,216.42,41.69634353]
[1731802304431,0.032909,216.43,216.42,41.47717891]
[1731802309124,0.032909,216.43,216.42,27.502374]
[1731802310033,14.00771391,216.43,216.42,3.6]
[1731802311105,18.62811391,216.43,216.42,3.6]
[1731802313942,0.032909,216.43,216.42,3.6]
[1731802314131,14.00771391,216.43,216.42,3.6]
[1731802318129,0.032909,216.43,216.42,3.6]
[1731802319244,0.032909,216.43,216.42,41.47717891]
[1731802321433,0.032909,216.43,216.42,3.6]
[1731802327846,14.00771391,216.43,216.42,3.6]
[1731802330341,29.31948853,216.43,216.42,3.6]
[1731802330857,29.12581391,216.43,216.42,3.6]
[1731802334764,29.31948853,216.43,216.42,3.6]
[1731802335061,29.41948853,216.43,216.42,3.6]
[1731802335944,33.71787558,216.43,216.42,3.6]
[1731802337344,0.2,216.41,216.27,15.6844]
[1731802337551,13.97480491,216.34,216.27,15.6844]
[1731802337949,13.97480491,216.34,216.26,13.97480491]
[1731802338270,0.2,216.41,216.24,6.3659]
[1731802338271,13.97480491,216.3,216.24,6.3659]
[1731802338767,14.07480491,216.36,216.22,30.50940491]
[1731802338768,13.97480491,216.31,216.23,13.97480491]
[1731802338940,13.97480491,216.31,216.22,16.5346]
[1731802338941,13.97480491,216.32,216.24,13.97480491]
[1731802339652,18.59770491,216.32,216.25,4.6242]
[1731802339857,13.97480491,216.31,216.24,13.97480491]
[1731802340150,17.823,216.39,216.27,13.97480491]
[1731802340151,4.6225,216.34,216.27,13.97480491]
[1731802340457,18.59730491,216.34,216.27,13.97480491]
[1731802340651,18.59730491,216.34,216.27,23.776884]
[1731802342066,13.97480491,216.31,216.24,13.97480491]
[1731802342246,13.97480491,216.31,216.23,13.97480491]
[1731802342571,13.97480491,216.31,216.24,43.902374]
[1731802343063,4.6232,216.3,216.24,23.776884]
[1731802343276,13.97480491,216.29,216.23,23.776884]
[1731802343446,13.97480491,216.29,216.08,56.1469865]
[1731802343447,13.97480491,216.27,216.19,20.45610491]
[1731802344272,13.97480491,216.29,216.21,13.97480491]
[1731802345053,18.59830491,216.29,216.22,28.527274]
[1731802346157,18.59830491,216.29,216.17,13.97480491]
[1731802346158,13.97480491,216.24,216.17,13.97480491]
[1731802346358,13.97480491,216.24,216.16,4.626]
[1731802346556,13.97480491,216.22,216.16,4.626]
[1731802346856,13.97480491,216.22,216.15,13.97480491]
[1731802347451,13.97480491,216.22,216.16,24.6262]
[1731802350669,13.97480491,216.32,216.23,23.902374]
[1731802350877,13.97480491,216.32,216.25,13.97480491]
[1731802351063,40.60580491,216.34,216.25,13.97480491]
[1731802351462,34.59790491,216.34,216.26,23.902374]
[1731802351855,34.59790491,216.34,216.26,28.526374]
[1731802353750,13.97480491,216.3,216.25,23.902374]
[1731802354469,13.97480491,216.32,216.25,23.902374]
[1731802354855,18.59750491,216.32,216.25,28.526474]
[1731802355854,13.97480491,216.28,216.21,13.97480491]
[1731802356180,13.97480491,216.28,216.16,16.1688]
[1731802356181,13.97480491,216.28,216.19,13.97480491]
[1731802356981,13.97480491,216.24,216.17,18.60070491]
[1731802357152,13.97480491,216.23,216.17,4.6259]
[1731802357761,13.97480491,216.23,216.16,13.97480491]
[1731802357962,18.59960491,216.23,216.16,18.60080491]
[1731802358758,13.97480491,216.25,216.17,24.027864]
[1731802359080,13.97480491,216.29,216.22,23.902374]
[1731802359972,13.97480491,216.33,216.25,13.97480491]
[1731802361370,18.59750491,216.33,216.25,18.59890491]
[1731802361675,16.0006,216.34,216.27,13.97480491]
[1731802361891,13.97480491,216.37,216.29,13.97480491]
[1731802362057,13.97480491,216.38,216.31,13.97480491]
[1731802362887,16.2747,216.39,216.32,24.027864]
[1731802363095,13.97480491,216.43,216.36,13.97480491]
[1731802363459,13.97480491,216.38,216.33,20.0]
[1731802363973,13.97480491,216.37,216.31,0.12549]
[1731802365259,13.97480491,216.34,216.26,37.87717891]
[1731802365577,13.97480491,216.32,216.27,0.12549]
[1731802366379,13.97480491,216.31,216.24,13.97480491]
[1731802366590,13.97480491,216.31,216.25,20.0]
[1731802366776,13.97480491,216.31,216.23,20.09140491]
[1731802367676,13.97480491,216.31,216.24,28.652164]
[1731802367862,13.97480491,216.31,216.24,42.62696891]
[1731802368180,13.97480491,216.32,216.25,13.97480491]
[1731802368766,22.37841079,216.32,216.25,22.37841079]
[1731802368982,22.37841079,216.31,216.24,23.902374]
[1731802369192,22.37841079,216.29,216.24,23.902374]
[1731802369563,22.37841079,216.3,216.24,23.902374]
[1731802369780,22.37841079,216.3,216.24,24.74989]
[1731802370172,22.37841079,216.3,216.24,4.74989]
[1731802372393,22.37841079,216.32,216.25,23.776884]
[1731802372589,22.37841079,216.31,216.25,23.776884]
[1731802373490,22.37841079,216.31,216.25,28.400984]
[1731802375970,37.58841079,216.35,216.27,0.09367462]
[1731802376282,22.37841079,216.37,216.29,43.902374]
[1731802377291,22.37841079,216.37,216.3,22.50390079]
[1731802377495,22.37841079,216.37,216.31,23.902374]
[1731802377871,22.37841079,216.33,216.27,23.902374]
[1731802378091,22.37841079,216.31,216.24,20.0]
[1731802378285,22.37841079,216.3,216.24,20.0]
[1731802378677,22.37841079,216.3,216.23,20.0]
[1731802378906,16.1759,216.37,216.24,22.47208541]
[1731802378907,22.37841079,216.32,216.24,22.47208541]
[1731802379077,16.1759,216.37,216.26,22.37841079]
[1731802379078,22.37841079,216.34,216.26,22.37841079]
[1731802379280,22.37841079,216.34,216.27,0.12549]
[1731802379475,22.37841079,216.34,216.27,24.027864]
[1731802379973,27.00071079,216.34,216.27,28.651564]
[1731802380895,27.00071079,216.34,216.27,23.776884]
[1731802381076,22.37841079,216.32,216.26,0.12549]
[1731802381273,22.37841079,216.32,216.26,23.902374]
[1731802381783,27.00071079,216.34,216.26,46.28078479]
[1731802381983,22.37841079,216.35,216.28,23.902374]
[1731802382170,27.00051079,216.35,216.27,22.37841079]
[1731802382369,27.00051079,216.35,216.22,6.1231]
[1731802382370,22.37841079,216.31,216.23,22.37841079]
[1731802382796,22.37841079,216.29,216.21,27.00331079]
[1731802382972,22.37841079,216.27,216.2,15.8599]
[1731802383170,22.37841079,216.21,216.12,6.141]
[1731802383374,22.37841079,216.16,216.1,4.6273]
[1731802383573,22.37841079,216.16,216.09,22.37841079]
[1731802383793,22.37841079,216.16,216.07,22.37841079]
[1731802383995,22.37841079,216.14,216.07,22.37841079]
[1731802384292,22.37841079,216.17,216.1,22.37841079]
[1731802385495,22.37841079,216.17,216.1,27.00581079]
[1731802386875,22.37841079,216.17,216.1,23.776884]
[1731802387985,4.6258,216.18,216.1,23.776884]
[1731802387986,22.37841079,216.16,216.1,23.776884]
[1731802388184,22.37841079,216.12,216.06,6.141]
[1731802388587,22.37841079,216.13,216.06,6.141]
[1731802388814,22.37841079,216.13,216.06,10.7692]
[1731802389309,22.37841079,216.13,216.07,23.902374]
[1731802389483,22.37841079,216.16,216.08,42.37841079]
[1731802389688,22.37841079,216.16,216.09,23.776884]
[1731802390014,4.6264,216.15,216.09,23.776884]
[1731802390218,22.37841079,216.19,216.12,20.0]
[1731802390816,34.9552573,216.2,216.12,14.0026573]
[1731802391486,14.0026573,216.21,216.14,14.0026573]
[1731802391689,14.0026573,216.22,216.15,23.776884]
[1731802392415,14.0026573,216.21,216.15,23.776884]
[1731802392618,4.6244,216.24,216.1,20.25098]
[1731802392619,14.0026573,216.17,216.1,38.8809373]
[1731802392912,14.0026573,216.17,216.11,23.776884]
[1731802393304,14.0026573,216.2,216.12,34.2536373]
[1731802393610,14.0026573,216.21,216.13,37.87321592]
[1731802393991,14.0026573,216.2,216.13,23.87055862]
[1731802394210,14.0026573,216.19,216.13,23.87055862]
[1731802394409,18.6281573,216.2,216.13,23.87055862]
[1731802394610,4.6246,216.24,216.17,0.09367462]
[1731802394915,18.6272573,216.24,216.17,34.09633192]
[1731802395106,18.6272573,216.24,216.17,0.09367462]
[1731802395290,14.0026573,216.22,216.15,14.0026573]
[1731802395714,18.6272573,216.24,216.16,44.12153862]
[1731802397789,18.6272573,216.24,216.16,48.74763862]
[1731802398194,18.6272573,216.24,216.15,14.0026573]
[1731802398195,14.0026573,216.2,216.11,14.0026573]
[1731802398620,14.0026573,216.2,216.12,20.09367462]
[1731802398811,14.0026573,216.22,216.14,0.09367462]
[1731802399011,14.0026573,216.22,216.14,20.09367462]
[1731802399320,14.0026573,216.22,216.08,4.7279]
[1731802399321,14.0026573,216.22,216.16,20.09367462]
[1731802399708,14.0026573,216.22,216.16,0.09367462]
[1731802399906,14.0026573,216.22,216.16,23.87055862]
[1731802400402,14.0026573,216.24,216.17,14.0026573]
[1731802402325,14.0026573,216.27,216.2,43.87055862]
[1731802403307,4.6225,216.33,216.26,14.0026573]
[1731802403627,14.0026573,216.34,216.27,23.87055862]
[1731802403819,14.0026573,216.36,216.29,23.87055862]
[1731802404494,18.6245573,216.36,216.29,28.49385862]
[1731802406836,5.64100116,216.44,216.31,20.34465462]
[1731802407132,16.5482,216.46,216.31,20.34465462]
[1731802407133,14.0026573,216.4,216.33,20.09367462]
[1731802407335,14.0026573,216.4,216.33,34.09633192]
[1731802408207,14.0026573,216.42,216.35,14.09633192]
[1731802408429,14.0026573,216.42,216.36,23.776884]
[1731802409508,18.6232573,216.42,216.36,23.776884]
[1731802409711,18.6232573,216.42,216.35,14.0026573]
[1731802410016,14.0026573,216.4,216.34,20.0]
[1731802410898,18.6232573,216.42,216.35,23.87055862]
[1731802412607,18.6228573,216.44,216.36,20.0]
[1731802413913,18.6228573,216.44,216.37,37.87321592]
[1731802414614,14.0026573,216.47,216.39,14.09633192]
[1731802415014,14.0026573,216.48,216.41,14.0026573]
[1731802415223,14.0026573,216.47,216.4,14.0026573]
[1731802415810,18.6217573,216.49,216.41,37.87321592]
[1731802416012,18.6217573,216.49,216.41,14.0026573]
[1731802416324,18.6217573,216.49,216.39,14.0026573]
[1731802416325,14.0026573,216.46,216.39,14.0026573]
[1731802416731,14.0026573,216.46,216.4,20.0]
[1731802417334,18.6225573,216.46,216.4,20.0]
[1731802417736,14.0026573,216.45,216.39,20.0]
[1731802418932,14.0026573,216.46,216.39,34.0026573]
[1731802419234,14.0026573,216.46,216.39,20.0]
[1731802420838,18.6225573,216.46,216.39,20.0]
[1731802422031,18.6221573,216.48,216.4,37.87321592]
[1731802422420,14.0026573,216.47,216.4,37.87321592]
[1731802423712,4.6191,216.5,216.45,14.0026573]
[1731802424030,16.4482,216.51,216.45,14.0026573]
[1731802424222,14.0026573,216.55,216.47,14.0026573]
[1731802424426,16.5167,216.56,216.44,14.0026573]
[1731802424610,14.0026573,216.49,216.43,20.0]
[1731802424828,16.1626,216.55,216.44,23.776884]
[1731802425642,14.0026573,216.5,216.44,23.776884]
[1731802426458,14.0026573,216.5,216.43,23.87055862]
[1731802427123,14.0026573,216.5,216.44,14.0026573]
[1731802427524,4.6187,216.51,216.44,14.0026573]
[1731802427928,14.0026573,216.5,216.39,20.0]
[1731802428125,14.0026573,216.48,216.42,14.0026573]
[1731802428351,14.0026573,216.46,216.38,14.0026573]
[1731802428756,14.0026573,216.46,216.39,0.09367462]
[1731802429546,14.0026573,216.46,216.39,20.09367462]
[1731802430333,18.6224573,216.46,216.39,0.09367462]
[1731802430532,18.6224573,216.46,216.39,43.99604862]
[1731802431347,14.0026573,216.48,216.43,0.09367462]
[1731802431633,4.29679132,216.55,216.42,34.0026573]
[1731802431634,18.6216573,216.5,216.42,34.0026573]
[1731802432133,18.6216573,216.5,216.43,23.99604862]
[1731802437749,18.6216573,216.5,216.43,0.21916462]
[1731802439770,18.6216573,216.5,216.45,0.21916462]
[1731802439771,14.0026573,216.5,216.45,0.21916462]
[1731802439991,4.6187,216.52,216.45,20.21916462]
[1731802439992,14.0026573,216.52,216.45,20.21916462]
[1731802440905,14.0026573,216.51,216.45,20.21916462]
[1731802441876,14.0026573,216.52,216.45,20.21916462]
[1731802443722,14.0026573,216.52,216.47,0.09367462]
[1731802443885,18.6206573,216.54,216.47,0.21916462]
[1731802444393,21.1345,216.56,216.49,14.22182192]
[1731802444598,4.6178,216.56,216.49,14.22182192]
[1731802444799,18.6204573,216.56,216.49,14.22182192]
[1731802445302,18.6204573,216.56,216.49,0.21916462]
[1731802445605,14.0026573,216.52,216.48,0.12549]
[1731802445977,14.0026573,216.52,216.48,0.21916462]
[1731802446610,14.0026573,216.49,216.42,20.0]
[1731802446783,14.0026573,216.46,216.38,14.0026573]
[1731802447080,14.0026573,216.45,216.37,14.0026573]
[1731802447290,14.0026573,216.45,216.38,0.09367462]
[1731802448084,14.0026573,216.45,216.38,23.776884]
[1731802448085,14.0026573,216.44,216.38,23.776884]
[1731802448280,4.6201,216.45,216.38,23.776884]
[1731802448281,14.0026573,216.43,216.38,23.776884]
[1731802448511,14.0026573,216.43,216.34,20.6540573]
[1731802448697,14.0026573,216.43,216.35,0.09367462]
[1731802449500,14.0026573,216.43,216.35,20.21916462]
[1731802449694,14.0026573,216.41,216.35,0.21916462]
[1731802451094,14.0026573,216.41,216.35,20.21916462]
[1731802453212,14.0026573,216.42,216.35,20.21916462]
[1731802454106,14.0026573,216.42,216.36,23.776884]
[1731802454713,4.6204,216.43,216.39,0.21916462]
[1731802454714,14.0026573,216.43,216.39,0.21916462]
[1731802455014,14.0026573,216.45,216.39,0.21916462]
[1731802456002,18.6226573,216.45,216.39,0.21916462]
[1731802456391,18.6226573,216.45,216.35,44.027864]
[1731802456392,14.0026573,216.43,216.35,44.027864]
[1731802456594,14.0026573,216.43,216.35,57.7795413]
[1731802456917,14.0026573,216.43,216.35,34.0026573]
[1731802457232,14.0026573,216.43,216.36,0.09367462]
[1731802457405,14.0026573,216.41,216.36,0.09367462]
[1731802458003,14.0026573,216.41,216.36,0.21916462]
[1731802458219,14.0026573,216.41,216.37,23.902374]
[1731802458401,14.0026573,216.39,216.34,20.0]
[1731802459200,14.0026573,216.39,216.32,20.09367462]
[1731802459809,14.0026573,216.39,216.34,0.09367462]
[1731802459996,14.0026573,216.39,216.34,20.21916462]
[1731802461293,18.6239573,216.39,216.34,20.21916462]
[1731802461715,18.6239573,216.39,216.29,16.0784]
[1731802461716,14.0026573,216.37,216.29,16.0784]
[1731802462003,4.6213,216.39,216.29,16.0784]
[1731802462004,14.0026573,216.35,216.29,16.0784]
[1731802462504,14.0026573,216.35,216.29,0.09367462]
[1731802462976,18.6248573,216.35,216.28,20.0]
[1731802463160,4.6222,216.35,216.3,0.09367462]
[1731802463365,18.6248573,216.35,216.31,0.12549]
[1731802463975,14.0026573,216.35,216.31,0.12549]
[1731802465366,14.0026573,216.33,216.31,0.12549]
[1731802466569,14.0026573,216.33,216.25,20.12549]
[1731802466778,14.0026573,216.31,216.26,0.12549]
[1731802467372,14.0026573,216.31,216.25,0.09367462]
[1731802467685,14.0026573,216.29,216.25,0.21916462]
[1731802468078,14.0026573,216.27,216.17,14.0026573]
[1731802468277,6.1182,216.29,216.15,4.6262]
[1731802468278,14.0026573,216.21,216.15,4.6262]
[1731802468589,14.0026573,216.21,216.16,0.09367462]
[1731802469288,14.0026573,216.2,216.13,14.0026573]
[1731802469592,14.0026573,216.19,216.11,15.2926]
[1731802469770,14.0026573,216.16,216.1,4.6274]
[1731802469967,14.0026573,216.15,216.07,14.0026573]
[1731802470382,14.0026573,216.15,216.08,0.09367462]
[1731802471191,14.0026573,216.15,216.1,0.09367462]
[1731802471369,14.0026573,216.15,216.04,21.3309]
[1731802471568,14.0026573,216.13,216.05,14.0026573]
[1731802471965,14.0026573,216.15,216.09,14.0026573]
[1731802472186,14.0026573,216.15,216.1,0.09367462]
[1731802472590,20.1208573,216.19,216.12,0.09367462]
[1731802473195,20.1208573,216.19,216.12,23.99604862]
[1731802474700,10.7438,216.19,216.12,23.99604862]
[1731802474903,10.7438,216.19,216.06,14.0026573]
[1731802474904,14.0026573,216.14,216.06,14.0026573]
[1731802475090,14.0026573,216.12,216.08,0.09367462]
[1731802475397,4.6257,216.18,216.07,0.12549]
[1731802475398,14.0026573,216.11,216.07,0.12549]
[1731802475691,14.0026573,216.12,216.05,0.34465462]
[1731802475892,14.0026573,216.13,216.05,14.34731192]
[1731802476093,14.0026573,216.13,216.07,0.21916462]
[1731802476501,4.6264,216.15,216.07,0.21916462]
[1731802476672,14.0026573,216.13,216.07,23.99604862]
[1731802477084,14.0026573,216.13,216.07,28.62404862]
[1731802479077,14.0026573,216.15,216.07,42.62670592]
[1731802479972,14.0026573,216.19,216.12,0.12549]
[1731802480308,16.4562,216.21,216.16,0.12549]
[1731802480486,16.4562,216.21,216.17,0.09367462]
[1731802480687,16.4562,216.21,216.17,23.87055862]
[1731802480894,14.0026573,216.24,216.19,23.99604862]
[1731802481135,14.0026573,216.24,216.2,0.12549]
[1731802481780,16.4562,216.27,216.21,23.87055862]
[1731802481976,18.6259573,216.3,216.23,0.09367462]
[1731802482181,18.6259573,216.3,216.24,0.12549]
[1731802483577,14.0026573,216.32,216.26,0.12549]
[1731802484793,22.37891917,216.31,216.26,0.12549]
[1731802485006,22.37891917,216.27,216.2,28.402084]
[1731802485310,4.6231,216.31,216.2,28.402084]
[1731802485311,22.37891917,216.25,216.2,28.402084]
[1731802486097,22.37891917,216.28,216.21,20.21916462]
[1731802486301,22.37891917,216.28,216.22,0.12549]
[1731802486491,22.37891917,216.26,216.22,0.12549]
[1731802486694,22.37891917,216.27,216.22,23.902374]
[1731802487087,22.37891917,216.29,216.22,23.902374]
[1731802487695,22.37891917,216.29,216.23,0.21916462]
[1731802487903,22.37891917,216.29,216.24,0.12549]
[1731802488203,22.37891917,216.31,216.25,0.09367462]
[1731802488386,22.37891917,216.32,216.26,23.902374]
[1731802489204,43.45781917,216.33,216.26,23.902374]
[1731802489501,43.45781917,216.33,216.26,28.526274]
[1731802489912,38.83511917,216.33,216.26,28.526274]
[1731802490506,22.37891917,216.33,216.26,28.526274]
[1731802491405,4.6222,216.35,216.29,0.09367462]
[1731802491406,22.37891917,216.35,216.29,0.09367462]
[1731802491612,22.37891917,216.35,216.3,0.12549]
[1731802493189,20.6698,216.38,216.3,0.12549]
[1731802493394,22.37891917,216.37,216.3,23.902374]
[1731802494614,22.37891917,216.37,216.32,23.902374]
[1731802496615,22.37891917,216.39,216.32,23.902374]
[1731802498402,27.00021917,216.39,216.32,23.902374]
[1731802499406,22.37891917,216.41,216.36,0.12549]
[1731802499715,22.37891917,216.41,216.36,23.902374]
[1731802500111,22.37891917,216.41,216.35,24.027864]
[1731802500426,22.37891917,216.42,216.36,24.12153862]
[1731802500612,4.6199,216.46,216.39,23.902374]
[1731802500927,26.99881917,216.46,216.39,46.28129317]
[1731802501295,22.37891917,216.45,216.39,23.902374]
[1731802501619,22.37891917,216.41,216.36,23.902374]
[1731802501797,22.37891917,216.4,216.36,23.902374]
[1731802502003,22.37891917,216.44,216.38,23.902374]
[1731802502222,22.37891917,216.42,216.34,28.59531917]
[1731802502516,4.6195,216.47,216.35,20.12549]
[1731802502697,22.37891917,216.4,216.35,20.12549]
[1731802503505,22.37891917,216.41,216.35,20.12549]
[1731802504338,4.6207,216.42,216.36,22.37891917]
[1731802504630,22.37891917,216.44,216.39,0.12549]
[1731802504932,22.37891917,216.43,216.36,0.12549]
[1731802505115,22.37891917,216.43,216.36,20.12549]
[1731802505431,22.37891917,216.43,216.38,0.12549]
[1731802505612,26.99931917,216.43,216.38,0.12549]
[1731802505803,22.37891917,216.41,216.36,0.12549]
[1731802506324,26.99931917,216.43,216.37,0.09367462]
[1731802506727,26.99901917,216.45,216.38,23.902374]
[1731802506901,18.58940938,216.45,216.39,0.09367462]
[1731802507813,13.96930938,216.45,216.39,0.21916462]
[1731802508010,4.6187,216.51,216.41,0.09367462]
[1731802508223,13.96930938,216.49,216.43,20.09367462]
[1731802508425,13.96930938,216.48,216.44,0.12549]
[1731802509131,13.96930938,216.49,216.44,0.12549]
[1731802509308,13.96930938,216.48,216.44,0.12549]
[1731802509511,13.96930938,216.49,216.44,0.12549]
[1731802510017,13.96930938,216.5,216.45,0.09367462]
[1731802510531,13.96930938,216.5,216.46,0.12549]
[1731802510725,13.96930938,216.5,216.45,20.0]
[1731802510935,13.96930938,216.49,216.43,0.12549]
[1731802511104,13.96930938,216.49,216.43,0.21916462]
[1731802511731,13.96930938,216.49,216.43,20.21916462]
[1731802512000,13.96930938,216.5,216.44,0.09367462]
[1731802512200,13.96930938,216.53,216.46,0.09367462]
[1731802512602,13.96930938,216.52,216.46,0.09367462]
[1731802512806,13.96930938,216.51,216.46,0.09367462]
[1731802513730,4.6184,216.53,216.45,0.12549]
[1731802513731,13.96930938,216.5,216.45,0.12549]
[1731802513903,13.96930938,216.46,216.37,6.1866]
[1731802514112,13.96930938,216.43,216.37,6.1866]
[1731802514311,13.96930938,216.42,216.39,0.09367462]
[1731802514519,13.96930938,216.44,216.39,0.09367462]
[1731802514942,13.96930938,216.45,216.39,0.09367462]
[1731802515115,13.96930938,216.44,216.39,20.0]
[1731802515625,13.96930938,216.44,216.4,0.12549]
[1731802515813,13.96930938,216.45,216.41,0.09367462]
[1731802516021,13.96930938,216.46,216.41,0.09367462]
[1731802516316,13.96930938,216.43,216.4,0.12549]
[1731802516507,13.96930938,216.41,216.38,16.6038]
[1731802516703,13.96930938,216.39,216.38,16.6038]
[1731802516935,13.96930938,216.39,216.33,0.09367462]
[1731802517307,13.96930938,216.39,216.32,13.96930938]
[1731802517515,13.96930938,216.4,216.32,13.96930938]
[1731802517730,13.96930938,216.4,216.33,44.027864]
[1731802517926,13.96930938,216.4,216.33,43.902374]
[1731802518129,13.96930938,216.41,216.34,13.96930938]
[1731802518332,13.96930938,216.41,216.35,20.0]
[1731802519135,13.96930938,216.4,216.34,20.09367462]
[1731802519336,13.96930938,216.4,216.35,0.12549]
[1731802519546,4.6207,216.42,216.35,0.12549]
[1731802519547,13.96930938,216.41,216.35,0.12549]
[1731802520139,13.96930938,216.43,216.37,23.902374]
[1731802520315,4.6204,216.44,216.37,23.902374]
[1731802520316,18.58970938,216.44,216.37,23.902374]
[1731802520521,13.96930938,216.42,216.37,23.902374]
[1731802521840,13.96930938,216.38,216.32,20.0]
[1731802522011,13.96930938,216.38,216.32,0.09367462]
[1731802523042,13.96930938,216.38,216.32,23.99604862]
[1731802524230,0.1,216.47,216.32,23.99604862]
[1731802524231,13.96930938,216.4,216.33,0.12549]
[1731802524434,4.6193,216.48,216.38,20.25098]
[1731802524637,13.96930938,216.45,216.4,0.12549]
[1731802524808,13.96930938,216.43,216.4,0.12549]
[1731802526043,18.58980938,216.43,216.36,20.0]
[1731802526335,18.58980938,216.43,216.37,23.902374]
[1731802526932,4.6202,216.44,216.39,23.902374]
[1731802527438,15.0482,216.52,216.43,0.12549]
[1731802527439,13.96930938,216.48,216.43,0.12549]
[1731802527740,4.6195,216.47,216.43,0.12549]
[1731802528635,18.58880938,216.47,216.42,0.12549]
[1731802529013,18.58880938,216.47,216.43,0.12549]
[1731802531449,13.96930938,216.47,216.43,0.25098]
[1731802531664,18.58840938,216.49,216.43,0.25098]
[1731802532442,18.58840938,216.49,216.43,0.12549]
[1731802534637,4.6188,216.51,216.45,14.09479938]
[1731802534827,4.6176,216.56,216.49,23.99604862]
[1731802535020,18.58690938,216.56,216.49,23.99604862]
[1731802535746,4.6165,216.61,216.51,37.965358]
[1731802535925,13.96930938,216.59,216.51,37.965358]
[1731802536241,13.96930938,216.59,216.52,20.0]
[1731802536420,13.96930938,216.61,216.55,0.09367462]
[1731802536625,4.6163,216.63,216.57,37.965358]
[1731802536926,18.58560938,216.63,216.57,0.21916462]
[1731802537124,18.58560938,216.63,216.57,23.902374]
[1731802537334,13.96930938,216.61,216.55,23.902374]
[1731802537539,13.96930938,216.6,216.55,23.902374]
[1731802537765,13.96930938,216.61,216.55,23.902374]